[Event "30th NATO Chess-ch 2019"]
[Site "Berlin"]
[Date "2019.09.20"]
[Round "7.17"]
[White "Keough, Robert"]
[Black "Kende, Gyorgy"]
[Result "1/2-1/2"]
[ECO "B15"]
[WhiteElo "2108"]
[BlackElo "2036"]
[Annotator "ChessBase"]
[PlyCount "36"]
[EventDate "2019.09.16"]
[EventType "swiss"]
[EventCountry "GER"]
[SourceTitle "playchess.com"]
[Source "ChessBase"]
[SourceQuality "1"]
[TimeControl "40/7200:1800"]

1. e4 {[%emt 1:59:57]} c6 {[%emt 1:59:57]} 2. d4 {[%emt 1:59:47]} d5 {[%emt 1:59:47]} 3. Nc3 {[%emt 1:59:42]} dxe4 {[%emt 1:59:37]} 4. Nxe4 {[%emt 1:59:37]} Nf6 {[%emt 1:57:46]} 5. Nxf6+ exf6 {[%emt 1:57:44]} 6. c3 {[%emt 1:59:26]} Bd6 {[%emt 1:57:37]} 7. Bd3 {[%emt 1:57:37]} O-O {[%emt 1:59:22]} 8. Qc2 {[%emt 1:59:20]} Re8+ {[%emt 1:57:03]} 9. Ne2 {[%emt 1:59:15]} h5 {[%emt 1:56:56]} 10. Be3 {[%emt 1:59:06]} Be6 {[%emt 1:49:42]} 11. Ng3 {[%emt 1:49:42]} c5 {[%emt 1:40:30]} 12. Bh7+ {[%emt 1:40:05]} Kh8 {[%emt 1:37:42]} 13. O-O-O {[%emt 1:39:54]} Qa5 {[%emt 1:39:54]} 14. d5 {[%emt 1:33:26]} Bg4 {[%emt 1:32:09]} 15. Kb1 {[%emt 1:32:09]} Bxd1 {[%emt 1:29:17]} 16. Rxd1 {[%emt 1:29:17]} Nd7 {[%emt 1:28:23]} 17. Nxh5 {[%emt 1:30:59]} Nb8 {Nc7 Bf8} 18. Z0 Qb5 1/2-1/2

[Event "30th NATO Chess-ch 2019"]
[Site "Berlin"]
[Date "2019.09.20"]
[Round "7.18"]
[White "Oltean, Gusztav"]
[Black "Almonti, Alessandro"]
[Result "0-1"]
[ECO "B07"]
[WhiteElo "2053"]
[BlackElo "1976"]
[Annotator "NA"]
[PlyCount "80"]
[EventDate "2019.09.16"]
[EventType "swiss"]
[EventCountry "GER"]
[SourceTitle "playchess.com"]
[Source "ChessBase"]
[SourceQuality "1"]
[TimeControl "40/7200:1800"]

1. e4 {[%emt 1:59:57]} d6 {[%emt 1:59:57]} 2. d4 {[%emt 1:59:47]} Nf6 {[%emt 1:59:47]} 3. Nc3 {[%emt 1:59:30]} c6 {[%emt 1:59:30]} 4. Be3 {[%emt 1:57:58]} a6 {[%emt 1:57:58]} 5. h3 {[%emt 1:55:21]} Nbd7 {[%emt 1:54:57]} 6. f4 {[%emt 1:47:14]} Qa5 {[%emt 1:47:14]} 7. Qd2 {[%emt 1:43:28]} e5 {[%emt 1:43:28]} 8. Bd3 {[%emt 1:50:20]} Be7 {[%emt 1:48:05]} 9. Nf3 {[%emt 1:26:19]} Qc7 {[%emt 1:37:44]} 10. O-O-O {[%emt 1:23:15]} b5 {[%emt 1:32:08]} 11. fxe5 {[%emt 1:32:08]} dxe5 {[%emt 1:31:45]} 12. dxe5 $14 {[%emt 1:12:13]} Nxe5 {[%emt 1:30:49]} 13. Nxe5 {[%emt 1:10:23]} Qxe5 {[%emt 1:30:21]} 14. Bf4 {[%emt 1:08:47]} Qc5 {[%emt 1:08:47]} 15. e5 {[%emt 1:29:57]} Nd5 {[%emt 1:07:28]} 16. Ne4 {[%emt 1:29:34]} Qb4 {[%emt 1:26:19]} 17. c3 {[%emt 0:44:29]} Qa4 {[%emt 0:44:29]} 18. Bc2 {[%emt 0:37:39]} Qxa2 {[%emt 0:37:39]} 19. Bg5 {[%emt 0:34:44]} Bf5 {[%emt 1:04:11]} 20. Nd6+ {[%emt 0:29:53]} Bxd6 {[%emt 1:03:42]} 21. Bxf5 {[%emt 0:29:38]} Bxe5 {[%emt 0:29:38]} 22. Qe2 {[%emt 0:23:48]} f6 {[%emt 1:00:22]} 23. Qh5+ {[%emt 0:19:36]} Ke7 {[%emt 0:19:36]} 24. Rhe1 {[%emt 0:17:43]} Qa1+ {[%emt 0:55:57]} 25. Bb1 {[%emt 0:16:22]} Kd6 {[%emt 0:16:22]} 26. Be3 {[%emt 0:51:08]} Bxc3 {[%emt 0:40:03]} 27. Bf4+ {[%emt 0:06:25]} Kc5 {[%emt 0:38:57]} 28. Re2 {[%emt 0:38:57]} Kb6 {[%emt 0:36:43]} 29. Rxd5 {[%emt 0:36:43]} cxd5 {[%emt 0:04:28]} 30. Qxd5 {[%emt 0:04:28]} Bxb2+ {[%emt 0:33:40]} 31. Rxb2 {[%emt 0:03:56]} Rac8+ {[%emt 0:03:56]} 32. Rc2 {[%emt 0:03:27]} Rxc2+ {[%emt 0:33:24]} 33. Kxc2 {[%emt 0:03:21]} Rc8+ {[%emt 0:03:21]} 34. Kd2 {[%emt 0:03:00]} Qb2+ {[%emt 0:31:31]} 35. Ke3 {[%emt 0:31:31]} Qxb1 {[%emt 0:02:24]} 36. Qd4+ {[%emt 0:02:17]} Ka5 {[%emt 0:23:47]} 37. Qd2+ {[%emt 0:02:15]} Ka4 {[%emt 0:02:15]} 38. Kf3 {[%emt 0:02:14]} Qb3+ {[%emt 0:22:17]} 39. Kg4 {[%emt 0:01:51]} Rc4 {[%emt 0:19:33]} 40. Qd6 {[%emt 0:01:44]} a5 {[%emt 0:01:44]} 0-1

[Event "30th NATO Chess-ch 2019"]
[Site "Berlin"]
[Date "2019.09.20"]
[Round "7.19"]
[White "Aagaard, Gert"]
[Black "Tocco, Paolo"]
[Result "1-0"]
[ECO "A40"]
[WhiteElo "2029"]
[BlackElo "2089"]
[Annotator "NA"]
[PlyCount "77"]
[EventDate "2019.09.16"]
[EventType "swiss"]
[EventCountry "GER"]
[SourceTitle "playchess.com"]
[Source "ChessBase"]
[SourceQuality "1"]
[TimeControl "40/7200:1800"]

1. d4 {[%emt 2:00:00]} b6 {[%emt 1:59:57]} 2. Bf4 {[%emt 1:59:54]} Bb7 {[%emt 1:59:47]} 3. e3 {[%emt 1:59:41]} d6 {[%emt 1:59:41]} 4. Nf3 {[%emt 1:59:41]} Nd7 {[%emt 1:59:26]} (4... g6 5. h3 Bg7 6. Bd3 Nd7 7. Bh2 e6 8. Nbd2 Ne7 9. Qe2 a6 10. e4 h6 {1-0 (35) Maze,S (2614)-Jessel,S (2334) Paris 2017}) 5. Nbd2 {[%emt 1:54:58]} g6 {[%emt 1:59:27]} 6. Bd3 {[%emt 1:53:18] A40: Unusual replies to 1 d4} Bg7 {[%emt 1:59:20]} 7. O-O {[%emt 1:52:19]} e5 {[%emt 1:52:19]} 8. Bg3 {[%emt 1:47:05]} Qe7 $146 {[%emt 1:47:05]} ({Predecessor:} 8... Ne7 9. c3 O-O 10. Qb3 h6 {1-0 (25) Berta,K (2225)-Racz,Z (2260) Aggtelek 1994}) 9. dxe5 {[%emt 1:44:00]} dxe5 {[%emt 1:46:29]} 10. Bb5 {[%emt 1:39:53]} c6 {[%emt 1:33:40]} 11. Bc4 {[%emt 1:33:40]} Ngf6 {[%emt 1:33:12]} 12. Bh4 {[%emt 1:29:38]} O-O {[%emt 1:31:42]} 13. Ne4 {[%emt 1:31:42]} b5 {[%emt 1:19:34]} 14. Be2 {[%emt 1:25:57]} Qb4 {[%emt 1:11:33]} 15. Nxf6+ {[%emt 1:17:44]} Nxf6 {[%emt 1:17:44]} 16. Bg3 {[%emt 1:11:28]} Rad8 {[%emt 1:17:17]} 17. Qc1 {[%emt 1:16:32]} e4 {[%emt 1:04:59]} 18. c3 {[%emt 1:04:59]} Qe7 {[%emt 1:02:13]} 19. Nd4 $11 {[%emt 1:02:13]} a6 {[%emt 1:02:06]} 20. b4 {[%emt 1:11:53]} c5 {[%emt 0:59:34]} 21. bxc5 {[%emt 1:10:01]} Qxc5 {[%emt 0:59:28]} 22. c4 {[%emt 1:01:35]} b4 {[%emt 1:01:35]} 23. a3 {[%emt 0:57:53]} bxa3 {[%emt 0:38:55]} 24. Qxa3 {[%emt 0:53:15]} Nd7 {[%emt 0:53:15]} 25. Bd6 {[%emt 0:47:56]} Qg5 {[%emt 0:21:17]} 26. Qa5 {[%emt 0:39:52]} Ne5 {[%emt 0:39:52]} 27. Bxf8 {[%emt 0:19:46]} Rxf8 {[%emt 0:20:03]} 28. Rfb1 {[%emt 0:17:05]} Bc8 {[%emt 0:17:20]} 29. Qc7 {[%emt 0:12:42]} Bh3 {[%emt 0:10:46]} 30. Bf1 {[%emt 0:08:58]} Nf3+ {[%emt 0:03:58]} 31. Nxf3 {[%emt 0:07:44]} exf3 {[%emt 0:03:49]} 32. Ra5 {[%emt 0:07:37]} Qg4 {[%emt 0:07:37]} 33. Qg3 {[%emt 0:01:24]} Qxg3 {[%emt 0:07:19]} 34. hxg3 {[%emt 0:07:05]} Bf5 {[%emt 0:00:49]} 35. Rxf5 {[%emt 0:00:49]} gxf5 {[%emt 0:00:30]} 36. c5 {[%emt 0:06:10]} a5 {[%emt 0:00:24]} 37. gxf3 {[%emt 0:00:24]} Ra8 {[%emt 0:00:09]} 38. Rb7 {[%emt 0:00:09]} a4 {[%emt 0:00:04]} 39. Bc4 {[%emt 0:05:11]} 1-0

[Event "30th NATO Chess-ch 2019"]
[Site "Berlin"]
[Date "2019.09.20"]
[Round "7.21"]
[White "Marquardt, Christian"]
[Black "Hater, David"]
[Result "1/2-1/2"]
[ECO "A45"]
[WhiteElo "2049"]
[BlackElo "1973"]
[Annotator "NA"]
[PlyCount "105"]
[EventDate "2019.09.16"]
[EventType "swiss"]
[EventCountry "GER"]
[SourceTitle "playchess.com"]
[Source "ChessBase"]
[SourceQuality "1"]
[TimeControl "40/7200:1800"]

1. d4 {[%emt 1:59:56]} Nf6 {[%emt 1:59:48]} 2. Bg5 {[%emt 1:59:48]} Ne4 {[%emt 1:59:48]} 3. Bf4 {[%emt 1:59:40]} d5 {[%emt 1:59:23]} 4. e3 {[%emt 1:59:21]} c5 {[%emt 1:51:41]} 5. c3 {[%emt 1:51:41]} Nc6 {[%emt 1:49:25]} 6. Nd2 {[%emt 1:56:40]} Bf5 {[%emt 1:56:40]} 7. Ngf3 {[%emt 1:54:24]} Qb6 {[%emt 1:41:38]} 8. Qb3 {[%emt 1:53:26]} Nxd2 {[%emt 1:41:06]} 9. Nxd2 {[%emt 1:53:08]} Qxb3 {[%emt 1:53:08]} 10. axb3 {[%emt 1:52:14]} f6 {[%emt 1:52:14]} 11. Bb5 {[%emt 1:36:17]} a6 {[%emt 1:35:47]} 12. Bxc6+ {[%emt 1:43:51]} bxc6 {[%emt 1:35:45]} 13. Ke2 {[%emt 1:43:28]} Kd7 {[%emt 1:30:09]} 14. Ra5 {[%emt 1:30:09]} cxd4 {[%emt 1:29:56]} 15. exd4 {[%emt 1:35:57]} Kc8 {[%emt 1:29:48]} 16. Rha1 {[%emt 1:34:39]} Kb7 {[%emt 1:29:42]} 17. b4 {[%emt 1:33:44]} e6 {[%emt 1:33:44]} 18. Nb3 {[%emt 1:31:26]} Bc2 {[%emt 1:25:41]} 19. Nc1 {[%emt 1:28:25]} Be7 {[%emt 1:25:07]} 20. Kd2 {[%emt 1:28:16]} Bg6 {[%emt 1:24:36]} 21. Nb3 {[%emt 1:24:36]} Rhe8 {[%emt 1:25:24]} 22. Re1 {[%emt 1:19:56]} Bf8 {[%emt 1:21:21]} 23. f3 {[%emt 1:21:21]} h5 {[%emt 1:20:06]} 24. h4 {[%emt 1:15:34]} Bf5 {[%emt 1:19:06]} 25. Raa1 {[%emt 1:19:06]} Be7 {[%emt 1:17:41]} 26. Re2 {[%emt 1:13:28]} Rg8 {[%emt 1:17:03]} 27. Rf2 {[%emt 1:01:01]} g5 {[%emt 1:15:06]} 28. hxg5 {[%emt 0:57:19]} fxg5 {[%emt 1:14:56]} 29. Be5 {[%emt 0:57:10]} g4 {[%emt 0:57:10]} 30. fxg4 {[%emt 1:10:50]} Rxg4 {[%emt 1:10:34]} 31. g3 {[%emt 0:52:27]} Rf8 {[%emt 1:05:04]} 32. Nc5+ {[%emt 0:46:49]} Bxc5 {[%emt 0:59:49]} 33. bxc5 {[%emt 0:45:00]} Rgg8 {[%emt 0:59:09]} 34. Bd6 {[%emt 0:59:09]} Rf7 {[%emt 0:40:10]} 35. Ra3 {[%emt 0:39:44]} Bg6 {[%emt 0:54:41]} 36. Rb3+ {[%emt 0:54:41]} Ka7 {[%emt 0:54:32]} 37. Rxf7+ {[%emt 0:54:32]} Bxf7 {[%emt 0:54:28]} 38. Rb6 {[%emt 0:34:36]} Rc8 {[%emt 0:52:47]} 39. Ke3 {[%emt 0:33:35]} Bg6 40. Kf4 {[%emt 0:52:27]} Bd3 {[%emt 0:45:40]} 41. Kg5 {[%emt 0:45:40]} Be2 {[%emt 0:45:25]} 42. Kf6 {[%emt 0:30:22]} Bb5 {[%emt 0:43:48]} 43. Kxe6 {[%emt 0:43:48]} Re8+ {[%emt 0:43:41]} 44. Kd7 {[%emt 0:26:59]} Re2 {[%emt 0:43:31]} 45. Kc7 {[%emt 0:26:49]} a5 {[%emt 0:42:35]} 46. Rxb5 {[%emt 0:20:14]} cxb5 {[%emt 0:20:14]} 47. c6 {[%emt 0:20:11]} Re8 {[%emt 0:35:33]} 48. Bc5+ {[%emt 0:18:20]} Ka6 {[%emt 0:35:28]} 49. Kd7 {[%emt 0:14:37]} Rg8 {[%emt 0:35:24]} 50. Bd6 {[%emt 0:35:24]} Kb6 {[%emt 0:31:38]} 51. Bc7+ {[%emt 0:31:38]} Ka6 {[%emt 0:31:29]} 52. Bd8 {[%emt 0:02:59]} Rg7+ {[%emt 0:02:59]} 53. Kd6 {[%emt 0:02:37]} 1/2-1/2

[Event "30th NATO Chess-ch 2019"]
[Site "Berlin"]
[Date "2019.09.20"]
[Round "7.22"]
[White "Tucker, David S"]
[Black "Schott, Guido"]
[Result "1/2-1/2"]
[ECO "B27"]
[WhiteElo "1997"]
[BlackElo "2043"]
[Annotator "NA"]
[PlyCount "41"]
[EventDate "2019.09.16"]
[EventType "swiss"]
[EventCountry "GER"]
[SourceTitle "playchess.com"]
[Source "ChessBase"]
[SourceQuality "1"]
[TimeControl "40/7200:1800"]

1. e4 {[%emt 1:59:53]} c5 {[%emt 1:59:47]} 2. Nf3 {[%emt 1:59:19]} g6 {[%emt 1:59:19]} 3. d4 {[%emt 1:58:49]} cxd4 {[%emt 1:58:49]} 4. Qxd4 {[%emt 1:59:24]} Nf6 {[%emt 1:58:33]} 5. Nc3 {[%emt 1:55:06]} Nc6 {[%emt 1:57:39]} 6. Qa4 {[%emt 1:54:33]} d6 {[%emt 1:51:24]} 7. e5 {[%emt 1:50:25]} Ng4 {[%emt 1:49:35]} 8. Bb5 {[%emt 1:49:35]} Ngxe5 {[%emt 1:43:36]} 9. Nxe5 {[%emt 1:40:18]} dxe5 {[%emt 1:43:32]} 10. Bxc6+ {[%emt 1:43:32]} bxc6 {[%emt 1:43:04]} 11. Qxc6+ {[%emt 1:43:04]} Bd7 {[%emt 1:42:54]} 12. Qc5 {[%emt 1:27:44]} Bg7 {[%emt 1:34:34]} 13. O-O {[%emt 1:20:05]} O-O {[%emt 1:31:07]} 14. Rd1 {[%emt 1:31:07]} Qc8 {[%emt 1:24:38]} 15. Qxe7 {[%emt 1:24:38]} Bf5 {[%emt 1:24:12]} 16. Be3 {[%emt 1:08:06]} Re8 {[%emt 1:22:23]} 17. Qh4 {[%emt 1:06:11]} Rb8 {[%emt 1:17:05]} 18. Ne4 {[%emt 1:01:47]} Bxe4 {[%emt 1:07:34]} 19. Qxe4 {[%emt 1:01:36]} Rxb2 {[%emt 1:01:36]} 20. Bc1 Rb3 21. Qxe5 1/2-1/2

[Event "30th NATO Chess-ch 2019"]
[Site "Berlin"]
[Date "2019.09.20"]
[Round "7.23"]
[White "Nikomanis, Andreas"]
[Black "Wagenaar, Harm Theo"]
[Result "1-0"]
[ECO "C10"]
[WhiteElo "2053"]
[BlackElo "1879"]
[Annotator "NA"]
[PlyCount "71"]
[EventDate "2019.09.16"]
[EventType "swiss"]
[EventCountry "GER"]
[SourceTitle "playchess.com"]
[Source "ChessBase"]
[SourceQuality "1"]
[TimeControl "40/7200:1800"]

1. e4 {[%emt 2:00:00]} e6 {[%emt 1:59:35]} 2. d4 {[%emt 1:59:35]} d5 {[%emt 1:59:29]} 3. Nc3 {[%emt 1:59:44]} dxe4 {[%emt 1:58:39]} 4. Nxe4 {[%emt 1:59:39]} Bd7 5. Nf3 {[%emt 1:59:32]} Bc6 {[%emt 1:59:32]} 6. Bd3 {[%emt 1:59:28]} Nd7 {[%emt 1:58:04]} 7. Qe2 {[%emt 1:58:12]} Ngf6 {[%emt 1:57:27]} 8. Nxf6+ {[%emt 1:56:40]} Nxf6 {[%emt 1:55:36]} 9. O-O {[%emt 1:55:36]} Be7 {[%emt 1:53:38]} 10. c3 {[%emt 1:53:04]} Bxf3 {[%emt 1:38:50]} 11. Qxf3 {[%emt 1:38:50]} Qd5 {[%emt 1:38:07]} 12. Qe2 {[%emt 1:49:06]} O-O 13. Be3 {[%emt 1:47:49]} c6 {[%emt 1:34:51]} 14. Rfe1 {[%emt 1:34:51]} Rfe8 {[%emt 1:43:47]} 15. h3 {[%emt 1:42:37]} a5 {[%emt 1:13:02]} 16. c4 {[%emt 1:13:02]} Qd8 {[%emt 1:12:39]} 17. Rad1 {[%emt 1:39:06]} Qc7 {[%emt 1:11:28]} 18. Bb1 {[%emt 1:37:38]} Bd6 {[%emt 0:57:52]} 19. Bg5 {[%emt 0:57:52]} Nd7 {[%emt 0:56:52]} 20. Qd3 {[%emt 0:56:52]} Nf8 {[%emt 1:30:29]} 21. Re4 {[%emt 0:56:17]} Be7 {[%emt 1:26:18]} 22. Bd2 {[%emt 1:15:09]} b6 {[%emt 0:49:34]} 23. a3 {[%emt 0:49:34]} Rad8 {[%emt 1:12:00]} 24. Bc3 {[%emt 1:11:15]} f5 {[%emt 1:11:15]} 25. Ree1 {[%emt 1:04:05]} Bf6 {[%emt 0:36:33]} 26. Qf3 {[%emt 0:36:33]} c5 {[%emt 0:59:16]} 27. d5 {[%emt 0:33:52]} Bxc3 {[%emt 0:32:51]} 28. Qxc3 {[%emt 0:54:16]} g6 {[%emt 0:27:19]} 29. Bc2 {[%emt 0:51:59]} exd5 {[%emt 0:19:07]} 30. cxd5 {[%emt 0:19:07]} Qd6 {[%emt 0:14:11]} 31. Ba4 {[%emt 0:46:16]} Re7 {[%emt 0:08:48]} 32. Rxe7 Qxe7 {[%emt 0:08:47]} 33. d6 {[%emt 0:42:14]} Rxd6 {[%emt 0:42:14]} 34. Bb3+ {[%emt 0:41:48]} Ne6 {[%emt 0:41:48]} 35. Rxd6 {[%emt 0:40:08]} Z0 36. Qg7+ {--- Rd7} 1-0

[Event "30th NATO Chess-ch 2019"]
[Site "Berlin"]
[Date "2019.09.20"]
[Round "7.24"]
[White "Drenthen, Arjan"]
[Black "Fichtner, Ewald"]
[Result "0-1"]
[ECO "D17"]
[WhiteElo "1917"]
[BlackElo "2046"]
[Annotator "NA"]
[PlyCount "60"]
[EventDate "2019.09.16"]
[EventType "swiss"]
[EventCountry "GER"]
[SourceTitle "playchess.com"]
[Source "ChessBase"]
[SourceQuality "1"]
[TimeControl "40/7200:1800"]

1. d4 {[%emt 2:00:00]} d5 {[%emt 1:59:54]} 2. c4 {[%emt 1:59:54]} c6 {[%emt 1:59:49]} 3. Nf3 {[%emt 1:59:48]} Nf6 {[%emt 1:59:43]} 4. Nc3 {[%emt 1:59:44]} dxc4 {[%emt 1:59:38]} 5. a4 {[%emt 1:59:38]} Bf5 {[%emt 1:59:40]} 6. Ne5 {[%emt 1:59:31]} Nbd7 {[%emt 1:59:12]} 7. Nxc4 {[%emt 1:59:12]} Qc7 {[%emt 1:58:15]} 8. g3 {[%emt 1:58:21]} e5 {[%emt 1:58:21]} 9. dxe5 {[%emt 1:57:42]} Nxe5 {[%emt 1:53:03]} 10. Bf4 {[%emt 1:57:26]} Nfd7 {[%emt 1:52:58]} 11. Bg2 {[%emt 1:52:58]} f6 {[%emt 1:56:21]} 12. O-O {[%emt 1:52:42]} Be7 {[%emt 1:51:23]} 13. Qc1 {[%emt 1:43:51]} Be6 {[%emt 1:34:33]} 14. Ne3 {[%emt 1:43:37]} Qa5 {[%emt 1:28:26]} 15. Qc2 {[%emt 1:36:19]} g5 {[%emt 1:19:15]} 16. Bxe5 {[%emt 1:19:15]} Qxe5 {[%emt 1:18:44]} 17. Qe4 {[%emt 1:18:44]} f5 {[%emt 1:08:17]} 18. Qxe5 {[%emt 1:28:57]} Nxe5 {[%emt 1:07:56]} 19. a5 {[%emt 1:25:01]} a6 {[%emt 1:04:56]} 20. Nc2 {[%emt 1:22:20]} O-O-O {[%emt 1:22:20]} 21. e3 {[%emt 1:17:10]} c5 {[%emt 1:17:10]} 22. Rfd1 {[%emt 1:10:04]} Bb3 {[%emt 0:49:44]} 23. Rxd8+ {[%emt 0:49:44]} Rxd8 {[%emt 0:49:31]} 24. Ne1 {[%emt 0:49:31]} Rd2 {[%emt 0:46:50]} 25. Rb1 {[%emt 0:57:25]} Nc4 {[%emt 0:44:40]} 26. Nd5 {[%emt 0:44:40]} Bd8 {[%emt 0:43:22]} 27. Nb6+ {[%emt 0:51:02]} Nxb6 {[%emt 0:38:43]} 28. axb6 {[%emt 0:38:43]} g4 {[%emt 0:38:31]} 29. Bf1 {[%emt 0:47:34]} Bxb6 {[%emt 0:34:19]} 30. Nd3 {[%emt 0:44:36]} Bc2 {[%emt 0:44:36]} 0-1

[Event "30th NATO Chess-ch 2019"]
[Site "Berlin"]
[Date "2019.09.20"]
[Round "7.25"]
[White "Nielsen, Jan Mose"]
[Black "Van den Heuvel, Tonnie"]
[Result "1-0"]
[ECO "E24"]
[WhiteElo "2044"]
[BlackElo "1819"]
[Annotator "NA"]
[PlyCount "29"]
[EventDate "2019.09.16"]
[EventType "swiss"]
[EventCountry "GER"]
[SourceTitle "playchess.com"]
[Source "ChessBase"]
[SourceQuality "1"]
[TimeControl "40/7200:1800"]

1. d4 {[%emt 1:59:58]} Nf6 {[%emt 1:59:52]} 2. c4 {[%emt 1:59:28]} e6 {[%emt 1:59:41]} 3. Nc3 {[%emt 1:59:41]} Bb4 {[%emt 1:59:22]} 4. Qc2 {[%emt 1:50:08]} c5 {[%emt 1:52:30]} 5. a3 {[%emt 1:47:14]} Bxc3+ {[%emt 1:47:14]} 6. bxc3 {[%emt 1:47:03]} Nc6 {[%emt 1:46:28]} 7. Nf3 {[%emt 1:46:28]} d5 {[%emt 1:44:37]} 8. Bg5 {[%emt 1:36:57]} h6 {[%emt 1:36:57]} 9. cxd5 {[%emt 1:33:38]} Nxd4 {[%emt 1:41:32]} 10. cxd4 {[%emt 1:31:47]} hxg5 {[%emt 1:31:47]} 11. dxe6 {[%emt 1:30:16]} Qa5+ {[%emt 1:35:51]} 12. Kd1 {[%emt 0:57:04]} Bxe6 {[%emt 1:27:55]} 13. Qxc5 {[%emt 1:27:55]} Qa4+ {[%emt 0:55:54]} 14. Ke1 {[%emt 0:55:19]} Nd5 {[%emt 0:55:19]} 15. e4 {[%emt 0:54:33]} 1-0

[Event "30th NATO Chess-ch 2019"]
[Site "Berlin"]
[Date "2019.09.20"]
[Round "7.26"]
[White "Nilsson, Erik"]
[Black "Christen, Peter"]
[Result "1-0"]
[ECO "D15"]
[WhiteElo "2022"]
[BlackElo "2153"]
[Annotator "ChessBase"]
[PlyCount "107"]
[EventDate "2019.09.16"]
[EventType "swiss"]
[EventCountry "GER"]
[SourceTitle "playchess.com"]
[Source "ChessBase"]
[SourceQuality "1"]
[TimeControl "40/7200:1800"]

1. d4 {[%emt 1:59:56]} d5 {[%emt 1:59:48]} 2. c4 {[%emt 1:59:49]} c6 {[%emt 1:59:41]} 3. Nf3 {[%emt 1:59:41]} Nf6 {[%emt 1:59:29]} 4. Nc3 {[%emt 1:59:36]} a6 {[%emt 1:58:05]} 5. c5 {[%emt 1:58:15]} Bf5 {[%emt 1:57:25]} 6. Qb3 {[%emt 1:56:49]} Qc7 {[%emt 1:56:26]} 7. g3 {[%emt 1:56:26]} Nbd7 {[%emt 1:56:06]} 8. Bf4 {[%emt 1:55:47]} Qc8 {[%emt 1:55:47]} 9. Na4 {[%emt 1:53:39]} Ra7 {[%emt 1:53:39]} 10. Bg2 {[%emt 1:52:13]} Nh5 {[%emt 1:52:13]} 11. Be3 {[%emt 1:51:25]} Be4 {[%emt 1:51:25]} 12. O-O {[%emt 1:49:33]} Qc7 {[%emt 1:34:36]} 13. Nb6 {[%emt 1:46:11]} Bxf3 {[%emt 1:28:57]} 14. exf3 {[%emt 1:42:44]} e5 {[%emt 1:42:44]} 15. Nxd7 {[%emt 1:39:21]} Qxd7 {[%emt 1:22:20]} 16. Qb6 {[%emt 1:32:09]} Ra8 {[%emt 1:21:53]} 17. dxe5 {[%emt 1:31:48]} g6 {[%emt 1:20:11]} 18. Rfe1 {[%emt 1:28:30]} Ng7 {[%emt 1:19:22]} 19. Rad1 {[%emt 1:23:28]} Be7 {[%emt 1:14:19]} 20. Qb3 {[%emt 1:20:35]} O-O {[%emt 1:13:41]} 21. Qc3 {[%emt 1:18:50]} Rfe8 {[%emt 1:02:14]} 22. h4 {[%emt 1:02:14]} Qe6 {[%emt 0:49:11]} 23. Bd4 {[%emt 1:11:28]} Bf8 {[%emt 0:42:51]} 24. Kh2 {[%emt 1:10:21]} Qe7 {[%emt 0:40:57]} 25. Bh3 {[%emt 1:09:40]} Ne6 {[%emt 0:39:29]} 26. Bxe6 {[%emt 1:09:04]} fxe6 {[%emt 0:35:50]} 27. Kg2 {[%emt 0:35:50]} b6 {[%emt 0:29:27]} 28. b4 {[%emt 1:07:49]} a5 {[%emt 0:29:19]} 29. a3 {[%emt 1:07:24]} axb4 {[%emt 1:07:24]} 30. axb4 {[%emt 1:07:11]} b5 {[%emt 0:28:56]} 31. Ra1 {[%emt 1:06:17]} Qb7 {[%emt 0:27:33]} 32. Rxa8 {[%emt 1:05:14]} Rxa8 {[%emt 1:05:14]} 33. Qe3 {[%emt 0:26:36]} Ra4 {[%emt 1:01:20]} 34. Rb1 {[%emt 0:25:02]} Qa7 {[%emt 1:00:43]} 35. h5 {[%emt 0:54:05]} Ra3 {[%emt 0:23:01]} 36. Rb3 {[%emt 0:23:01]} Ra2 {[%emt 0:17:50]} 37. hxg6 {[%emt 0:44:10]} hxg6 {[%emt 0:17:40]} 38. Qg5 {[%emt 0:43:24]} Qf7 {[%emt 0:43:24]} 39. Qe3 {[%emt 0:38:49]} Qa7 {[%emt 0:10:29]} 40. Qd3 {[%emt 0:37:04]} Kg7 {[%emt 0:09:19]} 41. Bb2 {[%emt 0:09:19]} Qa4 {[%emt 0:04:16]} 42. Ra3 {[%emt 0:04:16]} Rxa3 {[%emt 0:01:25]} 43. Qxa3 {[%emt 0:27:25]} Qxa3 {[%emt 0:27:25]} 44. Bxa3 {[%emt 0:27:16]} Kh7 {[%emt 0:27:16]} 45. f4 {[%emt 0:25:52]} Bh6 {[%emt 0:27:18]} 46. Bc1 {[%emt 0:27:18]} Bf8 {[%emt 0:54:48]} 47. Kf3 {[%emt 0:54:26]} Be7 {[%emt 0:54:26]} 48. Be3 {[%emt 0:53:51]} Kg8 {[%emt 0:53:51]} 49. Bd4 {[%emt 0:53:35]} Kf7 {[%emt 0:21:17]} 50. g4 {[%emt 0:53:09]} Bd8 {[%emt 0:20:56]} 51. Kg3 {[%emt 0:20:56]} Be7 {[%emt 0:52:28]} 52. Kf3 {[%emt 0:52:15]} Bf8 53. Z0 Ke8 54. f5 1-0

[Event "30th NATO Chess-ch 2019"]
[Site "Berlin"]
[Date "2019.09.20"]
[Round "7.27"]
[White "De Cat, Ben"]
[Black "Cheung, Jan"]
[Result "0-1"]
[ECO "D00"]
[WhiteElo "1891"]
[BlackElo "2015"]
[Annotator "NA"]
[PlyCount "49"]
[EventDate "2019.09.16"]
[EventType "swiss"]
[EventCountry "GER"]
[SourceTitle "playchess.com"]
[Source "ChessBase"]
[SourceQuality "1"]
[TimeControl "40/7200:1800"]

1. d4 {[%emt 1:59:57]} Nf6 {[%emt 1:59:48]} 2. Nc3 {[%emt 1:59:50]} g6 {[%emt 1:59:14]} 3. Bf4 {[%emt 1:59:38]} d5 {[%emt 1:56:48]} 4. e3 {[%emt 1:57:52]} Bg7 {[%emt 1:53:11]} 5. Nf3 {[%emt 1:52:56]} O-O {[%emt 1:52:06]} 6. Be2 {[%emt 1:52:06]} b6 {[%emt 1:43:45]} 7. Nb5 {[%emt 1:47:25]} Na6 {[%emt 1:42:06]} 8. Ne5 {[%emt 1:42:06]} Bb7 {[%emt 1:41:10]} 9. O-O {[%emt 1:41:10]} c6 {[%emt 1:45:09]} 10. Na3 {[%emt 1:44:59]} Nc7 {[%emt 1:35:09]} 11. c3 {[%emt 1:44:30]} Ne6 {[%emt 1:33:15]} 12. Bg3 {[%emt 1:33:15]} Ne4 {[%emt 1:27:06]} 13. Nc2 {[%emt 1:37:12]} c5 {[%emt 1:23:37]} 14. f3 {[%emt 1:23:37]} Nxg3 {[%emt 1:22:06]} 15. hxg3 {[%emt 1:29:56]} f6 16. Nd3 {[%emt 1:28:50]} cxd4 {[%emt 1:18:06]} 17. Nxd4 {[%emt 1:18:06]} Nxd4 {[%emt 1:17:17]} 18. exd4 {[%emt 1:26:41]} e5 {[%emt 1:26:41]} 19. Nf2 {[%emt 1:15:54]} Qd6 {[%emt 1:23:53]} 20. dxe5 {[%emt 1:09:12]} fxe5 {[%emt 1:07:44]} 21. Ne4 {[%emt 1:13:38]} Qe7 {[%emt 1:13:38]} 22. Nd2 {[%emt 1:07:03]} Bh6 {[%emt 1:01:38]} 23. Nb3 {[%emt 1:09:12]} Be3+ {[%emt 1:00:36]} 24. Kh2 {[%emt 1:06:59]} Qg5 {[%emt 0:59:35]} 25. Qxd5+ {[%emt 1:04:31]} 0-1